fUST/lending_fUST_20240822
["ID","MTS","AMOUNT","RATE_DAILY","PERIOD"]
[335580968,1724339469686,-672.96,0.00021369,7]
[335580969,1724339469695,-504.91,0.00021369,7]
[335580970,1724339469705,-500.0,0.00021369,2]
[335580971,1724339469715,-500.0,0.00021369,7]
[335580972,1724339469724,-500.0,0.00021369,7]
[335580973,1724339469734,-500.0,0.00021369,7]
[335580974,1724339469744,-500.0,0.00021369,7]
[335580975,1724339469754,-500.0,0.00021369,7]
[335580976,1724339469764,-500.0,0.00021369,7]
[335580977,1724339469774,-500.0,0.00021369,7]
[335580978,1724339469784,-628.36,0.00021369,7]
[335580979,1724339469794,-500.0,0.00021369,7]
[335580980,1724339469804,-193.21295663,0.00021369,7]
[335580981,1724339469813,-500.0,0.00021369,7]
[335580982,1724339469823,-2197.46,0.00021369,7]
[335580983,1724339469832,-160.8382437,0.00021369,7]
[335580984,1724339469842,-500.0,0.00021369,7]
[335580985,1724339469851,-500.0,0.00021369,7]
[335580986,1724339469861,-500.0,0.00021369,7]
[335580987,1724339469871,-500.0,0.00021369,7]
[335580988,1724339469881,-500.0,0.00021369,7]
[335580989,1724339469891,-500.0,0.00021369,7]
[335580990,1724339469900,-500.0,0.00021369,7]
[335580991,1724339469910,-500.0,0.00021369,7]
[335580992,1724339469920,-603.66,0.00021369,7]
[335580993,1724339469929,-500.0,0.00021369,7]
[335580994,1724339469940,-500.0,0.00021369,7]
[335580995,1724339469950,-500.0,0.00021369,7]
[335580996,1724339469960,-500.0,0.00021369,7]
[335580997,1724339469969,-500.0,0.00021369,7]
[335580998,1724339469979,-500.0,0.00021369,7]
[335580999,1724339469992,-500.0,0.00021369,7]
[335581000,1724339470002,-500.0,0.00021369,7]
[335581001,1724339470012,-500.0,0.00021369,7]
[335581002,1724339470023,-621.59456834,0.00021369,7]
[335581003,1724339470033,-500.0,0.00021369,7]
[335581004,1724339470042,-500.0,0.00021369,7]
[335581005,1724339470051,-500.0,0.00021369,7]
[335581006,1724339470063,-226.14024131,0.00021369,7]
[335581007,1724339470072,-500.0,0.00021369,7]
[335581008,1724339470082,-188.78167727,0.00021369,7]
[335581009,1724339470091,-500.0,0.00021369,7]
[335581010,1724339470100,-500.0,0.00021369,7]
[335581011,1724339470109,-516.82281964,0.00021369,7]
[335581012,1724339470119,-500.0,0.00021369,7]
[335581013,1724339470128,-2020.97,0.00021369,7]
[335581014,1724339470137,-500.0,0.00021369,7]
[335581015,1724339470146,-500.0,0.00021369,7]
[335581016,1724339470155,-500.0,0.00021369,7]
[335581017,1724339470165,-500.0,0.00021369,7]
[335581018,1724339470174,-670.05,0.00021369,7]
[335581019,1724339470184,-500.0,0.00021369,7]
[335581020,1724339470193,-500.0,0.00021369,7]
[335581021,1724339470202,-500.0,0.00021369,7]
[335581022,1724339470211,-500.0,0.00021369,7]
[335581023,1724339470221,-522.89,0.00021369,7]
[335581024,1724339470230,-500.0,0.00021369,7]
[335581025,1724339470240,-273.11238401,0.00021369,7]
[335581026,1724339470249,-500.0,0.00021369,7]
[335581027,1724339470260,-927.27,0.00021369,7]
[335581028,1724339470269,-500.0,0.00021369,7]
[335581029,1724339470279,-500.0,0.00021369,7]
[335581030,1724339470288,-500.0,0.00021369,7]
[335581031,1724339470297,-500.0,0.00021369,7]
[335581032,1724339470307,-500.0,0.00021369,7]
[335581033,1724339470316,-719.46,0.00021369,7]
[335581034,1724339470325,-500.0,0.00021369,7]
[335581035,1724339470334,-500.0,0.00021369,7]
[335581036,1724339470343,-500.0,0.00021369,7]
[335581037,1724339470353,-2364.22,0.00021369,7]
[335581038,1724339470362,-500.0,0.00021369,7]
[335581039,1724339470371,-605.15,0.00021369,2]
[335581040,1724339470380,-500.0,0.00021369,7]
[335581041,1724339470390,-640.98,0.00021369,7]
[335581042,1724339470399,-500.0,0.00021369,7]
[335581043,1724339470408,-638.49,0.00021369,7]
[335581044,1724339470417,-500.0,0.00021369,7]
[335581045,1724339470426,-468.24091207,0.00021369,7]
[335581046,1724339470436,-500.0,0.00021369,7]
[335581047,1724339470445,-501.45,0.00021369,7]
[335581048,1724339470455,-500.0,0.00021369,7]
[335581049,1724339470465,-500.0,0.00021369,7]
[335581050,1724339470474,-200.0,0.00021369,7]
[335581051,1724339470483,-645.17,0.00021369,7]
[335581052,1724339470493,-500.0,0.00021369,7]
[335581053,1724339470502,-513.97,0.00021369,7]
[335581054,1724339470513,-500.0,0.00021369,7]
[335581055,1724339470523,-1100.96,0.00021369,7]
[335581056,1724339470534,-500.0,0.00021369,7]
[335581057,1724339470543,-500.0,0.00021369,7]
[335581058,1724339470553,-564.35,0.00021369,7]
[335581059,1724339470562,-260.22646719,0.00021369,7]
[335581060,1724339470571,-500.0,0.00021369,7]
[335581061,1724339470580,-500.0,0.00021369,7]
[335581062,1724339470590,-500.0,0.00021369,7]
[335581063,1724339470599,-534.0863016,0.00021369,7]
[335581064,1724339470608,-500.0,0.00021369,7]
[335581065,1724339470618,-500.0,0.00021369,7]
[335581066,1724339470627,-500.0,0.00021369,7]
[335581067,1724339470636,-500.0,0.00021369,7]
[335581068,1724339470645,-500.0,0.00021369,7]
[335581069,1724339470654,-500.0,0.00021369,7]
[335581070,1724339470663,-500.0,0.00021369,7]
[335581071,1724339470672,-500.0,0.00021369,7]
[335581072,1724339470682,-789.21,0.00021369,7]
[335581073,1724339470692,-500.0,0.00021369,7]
[335581074,1724339470700,-1165.78,0.00021369,7]
[335581075,1724339470710,-500.0,0.00021369,7]
[335581076,1724339470719,-500.0,0.00021369,7]
[335581077,1724339470730,-500.0,0.00021369,7]
[335581078,1724339470739,-500.0,0.00021369,7]
[335581079,1724339470749,-1829.34,0.00021369,7]
[335581080,1724339470758,-593.85,0.00021369,7]
[335581081,1724339470768,-500.0,0.00021369,7]
[335581082,1724339470777,-770.75,0.00021369,7]
[335581083,1724339470786,-500.0,0.00021369,7]
[335581084,1724339470796,-500.0,0.00021369,7]
[335581085,1724339470805,-500.0,0.00021369,7]
[335581086,1724339470815,-500.0,0.00021369,7]
[335581087,1724339470824,-500.0,0.00021369,7]
[335581088,1724339470834,-677.91,0.00021369,7]
[335581089,1724339470843,-500.0,0.00021369,7]
[335581090,1724339470853,-500.0,0.00021369,7]
[335581091,1724339470862,-508.61,0.00021369,7]
[335581092,1724339470872,-500.0,0.00021369,7]
[335581093,1724339470881,-500.0,0.00021369,7]
[335581094,1724339470891,-808.41,0.00021369,7]
[335581095,1724339470901,-1136.83,0.00021369,7]
[335581096,1724339470910,-500.0,0.00021369,7]
[335581097,1724339470920,-500.0,0.00021369,7]
[335581098,1724339470930,-500.0,0.00021369,7]
[335581099,1724339470940,-1173.73,0.00021369,7]
[335581100,1724339470950,-500.0,0.00021369,7]
[335581101,1724339470960,-957.36,0.00021369,7]
[335581102,1724339470970,-328.00728875,0.00021369,7]
[335581103,1724339470981,-500.0,0.00021369,7]
[335581104,1724339470992,-558.68,0.00021369,7]
[335581105,1724339471002,-500.0,0.00021369,7]
[335581106,1724339471011,-506.08,0.00021369,7]
[335581107,1724339471020,-500.0,0.00021369,7]
[335581108,1724339471030,-500.0,0.00021369,7]
[335581109,1724339471039,-949.84,0.00021369,7]
[335581110,1724339471050,-689.06,0.00021369,7]
[335581111,1724339471062,-500.0,0.00021369,7]
[335581112,1724339471073,-500.0,0.00021369,7]
[335581113,1724339471084,-500.0,0.00021369,7]
[335581114,1724339471094,-500.0,0.00021369,7]
[335581115,1724339471106,-500.0,0.00021369,7]
[335581116,1724339471116,-721.62,0.00021369,7]
[335581117,1724339471125,-500.0,0.00021369,7]
[335581118,1724339471135,-500.0,0.00021369,7]
[335581119,1724339471144,-505.1,0.00021369,7]
[335581120,1724339471154,-500.0,0.00021369,7]
[335581121,1724339471164,-997.84,0.00021369,7]
[335581122,1724339471174,-500.0,0.00021369,7]
[335581123,1724339471183,-508.78,0.00021369,7]
[335581124,1724339471193,-750.8,0.00021369,7]
[335581125,1724339471202,-381.22504461,0.00021369,7]
[335581126,1724339471212,-500.0,0.00021369,7]
[335581127,1724339471222,-616.62,0.00021369,7]
[335581128,1724339471232,-500.0,0.00021369,7]
[335581129,1724339471241,-503.01,0.00021369,7]
[335581130,1724339471251,-343.58674445,0.00021369,7]
[335581131,1724339471319,-538.87,0.00021369,7]
[335581132,1724339471329,-500.0,0.00021369,7]
[335581133,1724339471338,-500.0,0.00021369,7]
[335581134,1724339471348,-700.96,0.00021369,7]
[335581135,1724339471358,-500.0,0.00021369,7]
[335581136,1724339471367,-500.0,0.00021369,7]
[335581137,1724339471378,-812.56,0.00021369,7]
[335581138,1724339471391,-593.73,0.00021369,7]
[335581139,1724339471402,-500.0,0.00021369,7]
[335581140,1724339471412,-534.86,0.00021369,7]
[335581141,1724339471421,-500.0,0.00021369,7]
[335581142,1724339471431,-187.04747513,0.00021369,7]
[335581143,1724339471440,-500.0,0.00021369,7]
[335581144,1724339471451,-500.0,0.00021369,7]
[335581145,1724339471462,-500.0,0.00021369,7]
[335581146,1724339471472,-666.03,0.00021369,7]
[335581147,1724339471481,-573.84,0.00021369,7]
[335581148,1724339471491,-500.0,0.00021369,7]
[335581149,1724339471500,-500.0,0.00021369,7]
[335581150,1724339471511,-500.0,0.00021369,7]
[335581151,1724339471520,-500.0,0.00021369,7]
[335581152,1724339471530,-500.0,0.00021369,7]
[335581153,1724339471539,-500.0,0.00021369,7]
[335581154,1724339471548,-636.8,0.00021369,7]
[335581155,1724339471558,-500.0,0.00021369,7]
[335581156,1724339471568,-500.0,0.00021369,7]
[335581157,1724339471577,-500.0,0.00021369,7]
[335581158,1724339471587,-500.0,0.00021369,7]
[335581159,1724339471596,-540.42,0.00021369,7]
[335581160,1724339471606,-500.0,0.00021369,7]
[335581161,1724339471615,-500.0,0.00021369,7]
[335581162,1724339471625,-500.0,0.00021369,7]
[335581163,1724339471635,-500.0,0.00021369,7]
[335581164,1724339471644,-500.0,0.00021369,7]
[335581165,1724339471656,-500.0,0.00021369,7]
[335581166,1724339471666,-500.0,0.00021369,7]
[335581167,1724339471677,-927.23,0.00021369,7]
[335581168,1724339471687,-500.0,0.00021369,7]
[335581169,1724339471699,-1102.72,0.00021369,7]
[335581170,1724339471708,-500.0,0.00021369,7]
[335581171,1724339471720,-500.0,0.00021369,7]
[335581172,1724339471730,-500.0,0.00021369,7]
[335581173,1724339471741,-886.44,0.00021369,7]
[335581174,1724339471750,-675.41,0.00021369,7]
[335581175,1724339471760,-260.11837308,0.00021369,7]
[335581176,1724339471769,-500.0,0.00021369,7]
[335581177,1724339471779,-500.0,0.00021369,7]
[335581178,1724339471788,-500.0,0.00021369,7]
[335581179,1724339471798,-505.09479349,0.00021369,7]
[335581180,1724339471808,-1608.05,0.00021369,7]
[335581181,1724339471817,-3402.94,0.00021369,7]
[335581182,1724339471826,-591.42,0.00021369,7]
[335581183,1724339471836,-500.0,0.00021369,7]
[335581184,1724339471846,-1589.93,0.00021369,7]
[335581185,1724339471856,-565.15,0.00021369,7]
[335581186,1724339471866,-2482.34,0.00021369,7]
[335581187,1724339471877,-500.0,0.00021369,7]
[335581188,1724339471887,-500.0,0.00021369,7]
[335581189,1724339471896,-500.0,0.00021369,7]
[335581190,1724339471905,-512.66746859,0.00021369,7]
[335581191,1724339471915,-1548.5,0.00021369,7]
[335581192,1724339471924,-500.0,0.00021369,7]
[335581193,1724339471933,-500.0,0.00021369,7]
[335581194,1724339471942,-500.0,0.00021369,7]
[335581195,1724339471954,-595.42,0.00021369,7]
[335581196,1724339471964,-836.78,0.00021369,7]
[335581197,1724339471974,-4470.39,0.00021369,7]
[335581198,1724339471988,-500.0,0.00021369,7]
[335581199,1724339471999,-500.0,0.00021369,7]
[335581200,1724339472009,-902.56,0.00021369,7]
[335581201,1724339472019,-978.97,0.00021369,7]
[335581202,1724339472028,-500.0,0.00021369,7]
[335581203,1724339472040,-500.0,0.00021369,7]
[335581204,1724339472051,-2468.18,0.00021369,7]
[335581205,1724339472064,-500.0,0.00021369,7]
[335581206,1724339472076,-500.0,0.00021369,7]
[335581207,1724339472087,-500.0,0.00021369,7]
[335581208,1724339472097,-747.31,0.00021369,7]
[335581209,1724339472108,-500.0,0.00021369,7]
[335581210,1724339472119,-500.0,0.00021369,7]
[335581211,1724339472130,-500.0,0.00021369,7]
[335581212,1724339472140,-500.0,0.00021369,7]
[335581213,1724339472151,-500.0,0.00021369,7]
[335581214,1724339472161,-500.0,0.00021369,7]
[335581215,1724339472172,-807.69,0.00021369,7]
[335581216,1724339472181,-637.58,0.00021369,7]
[335581217,1724339472192,-500.0,0.00021369,7]
[335581218,1724339472202,-500.0,0.00021369,7]
[335581219,1724339472213,-524.22,0.00021369,7]
[335581220,1724339472224,-500.0,0.00021369,7]
[335581221,1724339472234,-500.0,0.00021369,7]
[335581222,1724339472244,-1635.87,0.00021369,7]
[335581223,1724339472255,-500.0,0.00021369,7]
[335581224,1724339472279,-500.0,0.00021369,7]
[335581225,1724339472289,-500.0,0.00021369,7]
[335581226,1724339472299,-703.91,0.00021369,7]
[335581227,1724339472309,-2424.95,0.00021369,7]
[335581228,1724339472318,-975.92,0.00021369,7]
[335581229,1724339472328,-725.67,0.00021369,7]
[335581230,1724339472337,-500.0,0.00021369,7]
[335581231,1724339472347,-941.3,0.00021369,7]
[335581232,1724339472357,-500.0,0.00021369,7]
[335581233,1724339472368,-594.62,0.00021369,7]
[335581234,1724339472378,-219.4939957,0.00021369,7]
[335581235,1724339472389,-2179.41,0.00021369,7]
[335581236,1724339472398,-500.0,0.00021369,7]
[335581237,1724339472410,-500.0,0.00021369,7]
[335581238,1724339472419,-500.0,0.00021369,7]
[335581239,1724339472430,-572.99,0.00021369,7]
[335581240,1724339472441,-500.0,0.00021369,7]
[335581241,1724339472451,-5331.32,0.00021369,7]
[335581242,1724339472461,-4235.92,0.00021369,7]
[335581243,1724339472471,-566.83,0.00021369,7]
[335581244,1724339472481,-500.0,0.00021369,7]
[335581245,1724339472491,-783.99,0.00021369,7]
[335581246,1724339472502,-500.0,0.00021369,7]
[335581247,1724339472512,-2414.51,0.00021369,7]
[335581248,1724339472522,-1660.58,0.00021369,7]
[335581249,1724339472532,-584.34,0.00021369,7]
[335581250,1724339472542,-2258.84,0.00021369,7]
[335581251,1724339472552,-1526.82,0.00021369,7]
[335581252,1724339472561,-500.0,0.00021369,7]
[335581253,1724339472572,-500.0,0.00021369,7]
[335581254,1724339472582,-1119.82,0.00021369,7]
[335581255,1724339472592,-599.87,0.00021369,7]
[335581256,1724339472602,-500.0,0.00021369,7]
[335581257,1724339472612,-558.41582641,0.00021369,7]
[335581258,1724339472623,-680.9,0.00021369,7]
[335581259,1724339472634,-595.25,0.00021369,7]
[335581260,1724339472645,-500.0,0.00021369,7]
[335581261,1724339472656,-788.88,0.00021369,7]
[335581262,1724339472667,-588.02,0.00021369,7]
[335581263,1724339472678,-500.0,0.00021369,7]
[335581264,1724339472689,-857.06,0.00021369,7]
[335581265,1724339472702,-500.0,0.00021369,7]
[335581266,1724339472715,-621.96,0.00021369,7]
[335581267,1724339472728,-712.22,0.00021369,7]
[335581268,1724339472741,-5809.49,0.00021369,7]
[335581269,1724339472751,-832.86,0.00021369,7]
[335581270,1724339472766,-255.640682,0.00021369,7]
[335581271,1724339472776,-500.0,0.00021369,7]
[335581272,1724339472786,-500.0,0.00021369,7]
[335581273,1724339472796,-500.0,0.00021369,7]
[335581274,1724339472810,-454.41077304,0.00021369,7]
[335581275,1724339472820,-1029.54,0.00021369,7]
[335581276,1724339472831,-584.49,0.00021369,7]
[335581277,1724339472841,-577.9,0.00021369,7]
[335581278,1724339472851,-500.0,0.00021369,7]
[335581279,1724339472862,-614.54,0.00021369,7]
[335581280,1724339472872,-967.72,0.00021369,7]
[335581281,1724339472882,-673.61,0.00021369,7]
[335581282,1724339472894,-500.0,0.00021369,7]
[335581283,1724339472904,-564.78,0.00021369,7]
[335581284,1724339472915,-778.36,0.00021369,7]
[335581285,1724339472925,-1091.36,0.00021369,7]
[335581286,1724339472935,-500.0,0.00021369,7]
[335581287,1724339472945,-518.18294789,0.00021369,7]
[335581288,1724339472956,-500.0,0.00021369,7]
[335581289,1724339472967,-500.0,0.00021369,7]
[335581290,1724339472979,-500.0,0.00021369,7]
[335581291,1724339472995,-1095.73,0.00021369,7]
[335581292,1724339473005,-500.0,0.00021369,7]
[335581293,1724339473016,-245.44799406,0.00021369,7]
[335581294,1724339473028,-1210.45,0.00021369,7]
[335581295,1724339473039,-500.0,0.00021369,7]
[335581296,1724339473050,-500.0,0.00021369,7]
[335581297,1724339473064,-2512.15,0.00021369,7]
[335581298,1724339473075,-627.5,0.00021369,7]
[335581299,1724339473085,-867.29,0.00021369,7]
[335581300,1724339473095,-4673.84,0.00021369,7]
[335581301,1724339473108,-500.0,0.00021369,7]
[335581302,1724339473119,-948.0,0.00021369,7]
[335581303,1724339473130,-690.72,0.00021369,7]
[335581304,1724339473142,-500.0,0.00021369,7]
[335581305,1724339473155,-500.0,0.00021369,7]
[335581306,1724339473165,-1247.76,0.00021369,7]
[335581307,1724339473175,-500.0,0.00021369,7]
[335581308,1724339473184,-500.0,0.00021369,7]
[335581309,1724339473195,-500.0,0.00021369,7]
[335581310,1724339473205,-500.0,0.00021369,7]
[335581311,1724339473215,-2682.64,0.00021369,7]
[335581312,1724339473229,-1635.27,0.00021369,7]
[335581313,1724339473244,-697.49,0.00021369,7]
[335581314,1724339473260,-708.45,0.00021369,7]
[335581315,1724339473273,-500.0,0.00021369,2]
[335581316,1724339473284,-2663.2,0.00021369,7]
[335581317,1724339473298,-500.0,0.00021369,7]
[335581318,1724339473313,-500.0,0.00021369,7]
[335581319,1724339473328,-500.0,0.00021369,7]
[335581320,1724339473345,-506.58057577,0.00021369,7]
[335581321,1724339473361,-1130.78,0.00021369,7]
[335581322,1724339473375,-3229.35,0.00021369,7]
[335581323,1724339473388,-500.0,0.00021369,7]
[335581324,1724339473401,-998.77,0.00021369,7]
[335581325,1724339473414,-500.0,0.00021369,7]
[335581326,1724339473428,-150.0,0.00021501,2]
[335581327,1724339473441,-150.0,0.00021501,2]
[335581328,1724339473453,-150.0,0.00021501,2]
[335581329,1724339473463,-150.0,0.00021501,2]
[335581330,1724339473476,-522.0,0.00021501,2]
[335581331,1724339473488,-409.12482,0.00021638,2]
[335581332,1724339473501,-409.12482,0.00021638,2]
[335581333,1724339473516,-409.12482,0.00021638,2]
[335581334,1724339473530,-408.0861288,0.00021638,2]
[335581335,1724339473544,-2000.0,0.00021724,2]
[335581336,1724339473558,-1999.16,0.000218,2]
[335581337,1724339473568,-151.0,0.000218,2]
[335581338,1724339473579,-151.0,0.000218,2]
[335581339,1724339473591,-151.0,0.000218,2]
[335581340,1724339473606,-151.0,0.000218,2]
[335581341,1724339473619,-151.0,0.000218,2]
[335581342,1724339473631,-450.0,0.00021916,2]
[335581343,1724339473646,-500.0,0.00021917,7]
[335581344,1724339473660,-500.0,0.00021917,7]
[335581345,1724339473672,-629.36,0.00021917,7]
[335581346,1724339473684,-987.26,0.00021917,7]
[335581347,1724339473696,-500.0,0.00021917,7]
[335581348,1724339473708,-500.0,0.00021917,7]
[335581349,1724339473720,-592.31,0.00021917,7]
[335581350,1724339473731,-599.77,0.00021917,7]
[335581351,1724339473744,-672.96,0.00021917,7]
[335581352,1724339473755,-504.91,0.00021917,7]
[335581353,1724339473768,-500.0,0.00021917,2]
[335581354,1724339473779,-500.0,0.00021917,7]
[335581355,1724339473790,-500.0,0.00021917,7]
[335581356,1724339473803,-500.0,0.00021917,7]
[335581357,1724339473814,-502.49910985,0.00021917,7]
[335581358,1724339473826,-500.0,0.00021917,7]
[335581359,1724339473837,-500.0,0.00021917,7]
[335581360,1724339473849,-628.36,0.00021917,7]
[335581361,1724339473861,-500.0,0.00021917,7]
[335581362,1724339473874,-500.0,0.00021917,7]
[335581363,1724339473885,-2197.46,0.00021917,7]
[335581364,1724339473897,-500.0,0.00021917,7]
[335581365,1724339473909,-500.0,0.00021917,7]
[335581366,1724339473920,-500.0,0.00021917,7]
[335581367,1724339473932,-500.0,0.00021917,7]
[335581368,1724339473944,-500.0,0.00021917,7]
[335581369,1724339473956,-500.0,0.00021917,7]
[335581370,1724339473967,-500.0,0.00021917,7]
[335581371,1724339473983,-512.05649409,0.00021917,7]
[335581372,1724339473995,-603.66,0.00021917,7]
[335581373,1724339474009,-500.0,0.00021917,7]
[335581374,1724339474024,-500.0,0.00021917,7]
[335581375,1724339474036,-500.0,0.00021917,7]
[335581376,1724339474048,-500.0,0.00021917,7]
[335581377,1724339474061,-500.0,0.00021917,7]
[335581378,1724339474073,-500.0,0.00021917,7]
[335581379,1724339474084,-500.0,0.00021917,7]
[335581380,1724339474096,-500.0,0.00021917,7]
[335581381,1724339474108,-500.0,0.00021917,7]
[335581382,1724339474120,-500.0,0.00021917,7]
[335581383,1724339474133,-500.0,0.00021917,7]
[335581384,1724339474147,-418.46563862,0.00021917,7]
[335581385,1724339474158,-151.0,0.00021917,2]
[335581386,1724339474170,-151.0,0.00021917,2]
[335581387,1724339474182,-692.108496,0.00021917,2]
[335581388,1724339474194,-500.0,0.00021917,7]
[335581389,1724339474207,-692.108496,0.00021917,2]
[335581390,1724339474220,-500.0,0.00021917,7]
[335581391,1724339474234,-500.0,0.00021917,7]
[335581392,1724339474247,-500.0,0.00021917,7]
[335581393,1724339474259,-2020.97,0.00021917,7]
[335581394,1724339474270,-500.0,0.00021917,7]
[335581395,1724339474282,-500.0,0.00021917,7]
[335581396,1724339474295,-151.0,0.00021917,2]
[335581397,1724339474308,-500.0,0.00021917,7]
[335581398,1724339474320,-151.0,0.00021917,2]
[335581399,1724339474334,-304.930647,0.00021917,2]
[335581400,1724339474347,-151.0,0.00021917,2]
[335581401,1724339474359,-304.930647,0.00021917,2]
[335581402,1724339474372,-500.0,0.00021917,7]
[335581403,1724339474384,-670.05,0.00021917,7]
[335581404,1724339474396,-500.0,0.00021917,7]
[335581405,1724339474407,-500.0,0.00021917,7]
[335581406,1724339474419,-500.0,0.00021917,7]
[335581407,1724339474431,-500.0,0.00021917,7]
[335581408,1724339474443,-522.89,0.00021917,7]
[335581409,1724339474455,-500.0,0.00021917,7]
[335581410,1724339474466,-500.0,0.00021917,7]
[335581411,1724339474478,-151.0,0.00021917,2]
[335581412,1724339474490,-927.27,0.00021917,7]
[335581413,1724339474502,-500.0,0.00021917,7]
[335581414,1724339474515,-500.0,0.00021917,7]
[335581415,1724339474527,-151.0,0.00021917,2]
[335581416,1724339474539,-500.0,0.00021917,7]
[335581417,1724339474551,-500.0,0.00021917,7]
[335581418,1724339474563,-151.0,0.00021917,2]
[335581419,1724339474575,-500.0,0.00021917,7]
[335581420,1724339474587,-151.0,0.00021917,2]
[335581421,1724339474599,-719.46,0.00021917,7]
[335581422,1724339474611,-500.0,0.00021917,7]
[335581423,1724339474622,-500.0,0.00021917,7]
[335581424,1724339474634,-500.0,0.00021917,7]
[335581425,1724339474646,-2364.22,0.00021917,7]
[335581426,1724339474657,-500.0,0.00021917,7]
[335581427,1724339474669,-605.15,0.00021917,2]
[335581428,1724339474681,-500.0,0.00021917,7]
[335581429,1724339474695,-640.98,0.00021917,7]
[335581430,1724339474706,-500.0,0.00021917,7]
[335581431,1724339474719,-155.544491,0.00021917,2]
[335581432,1724339474731,-168.028895,0.00021917,2]
[335581433,1724339474743,-638.49,0.00021917,7]
[335581434,1724339474754,-155.544491,0.00021917,2]
[335581435,1724339474769,-500.0,0.00021917,7]
[335581436,1724339474782,-168.028895,0.00021917,2]
[335581437,1724339474794,-500.0,0.00021917,7]
[335581438,1724339474805,-501.45,0.00021917,7]
[335581439,1724339474820,-500.0,0.00021917,7]
[335581440,1724339474832,-500.0,0.00021917,7]
[335581441,1724339474844,-200.0,0.00021917,7]
[335581442,1724339474857,-645.17,0.00021917,7]
[335581443,1724339474869,-500.0,0.00021917,7]
[335581444,1724339474882,-513.97,0.00021917,7]
[335581445,1724339474894,-500.0,0.00021917,7]
[335581446,1724339474906,-1100.96,0.00021917,7]
[335581447,1724339474917,-500.0,0.00021917,7]
[335581448,1724339474929,-500.0,0.00021917,7]
[335581449,1724339474942,-564.35,0.00021917,7]
[335581450,1724339474955,-151.0,0.00021917,2]
[335581451,1724339474967,-500.0,0.00021917,7]
[335581452,1724339474981,-500.0,0.00021917,7]
[335581453,1724339474994,-500.0,0.00021917,7]
[335581454,1724339475006,-500.0,0.00021917,7]
[335581455,1724339475019,-500.0,0.00021917,7]
[335581456,1724339475031,-500.0,0.00021917,7]
[335581457,1724339475042,-500.0,0.00021917,7]
[335581458,1724339475054,-500.0,0.00021917,7]
[335581459,1724339475067,-151.0,0.00021917,2]
[335581460,1724339475078,-151.0,0.00021917,2]
[335581461,1724339475090,-500.0,0.00021917,7]
[335581462,1724339475102,-500.0,0.00021917,7]
[335581463,1724339475114,-500.0,0.00021917,7]
[335581464,1724339475127,-789.21,0.00021917,7]
[335581465,1724339475139,-500.0,0.00021917,7]
[335581466,1724339475152,-1165.78,0.00021917,7]
[335581467,1724339475163,-500.0,0.00021917,7]